[Event "Early-Titled-Tuesday-Blitz-March-26-2024"]
[Site "Chess.com"]
[Date "2024.03.26"]
[Round "1"]
[White "NovoselovRoman"]
[Black "Firouzja2003"]
[Result "1/2-1/2"]
[WhiteElo "2552"]
[BlackElo "3073"]
[TimeControl "180+1"]
[EndTime "8:07:29 PDT"]
[Termination "Game drawn by repetition"]

1. e4 {[%clk 0:02:58.1]} 1... c5 {[%clk 0:03:00.1]} 2. Nc3 {[%clk 0:02:58.1]}
2... d6 {[%clk 0:03:00.4]} 3. g3 {[%clk 0:02:56.4]} 3... g6 {[%clk 0:03:00]} 4.
Bg2 {[%clk 0:02:56.8]} 4... Bg7 {[%clk 0:03:00.6]} 5. d3 {[%clk 0:02:57.4]} 5...
Nc6 {[%clk 0:03:01.1]} 6. f4 {[%clk 0:02:58.1]} 6... Rb8 {[%clk 0:02:59.2]} 7.
a4 {[%clk 0:02:57.6]} 7... Nh6 {[%clk 0:02:52.9]} 8. Nf3 {[%clk 0:02:52.9]} 8...
O-O {[%clk 0:02:52.9]} 9. O-O {[%clk 0:02:52.3]} 9... f5 {[%clk 0:02:53.6]} 10.
h3 {[%clk 0:02:49.9]} 10... e6 {[%clk 0:02:50.3]} 11. Be3 {[%clk 0:02:49.7]}
11... b6 {[%clk 0:02:47.5]} 12. Bf2 {[%clk 0:02:40.6]} 12... Bb7 {[%clk
0:02:46.4]} 13. Re1 {[%clk 0:02:33.3]} 13... Qd7 {[%clk 0:02:44.2]} 14. d4
{[%clk 0:02:32.9]} 14... cxd4 {[%clk 0:02:28.1]} 15. Nxd4 {[%clk 0:02:33.8]}
15... Nxd4 {[%clk 0:02:28.6]} 16. Bxd4 {[%clk 0:02:34.1]} 16... e5 {[%clk
0:02:29.5]} 17. Be3 {[%clk 0:02:19.6]} 17... fxe4 {[%clk 0:02:23.2]} 18. fxe5
{[%clk 0:02:14.1]} 18... Nf5 {[%clk 0:02:23.1]} 19. Bf4 {[%clk 0:01:49.7]} 19...
g5 {[%clk 0:02:22.5]} 20. Bxg5 {[%clk 0:01:35.7]} 20... Nxg3 {[%clk 0:02:22.5]}
21. Qxd6 {[%clk 0:01:12.9]} 21... Qf5 {[%clk 0:02:22]} 22. Bf6 {[%clk
0:01:07.2]} 22... e3 {[%clk 0:01:13.4]} 23. Rxe3 {[%clk 0:00:59.6]} 23... Qg6
{[%clk 0:00:56.7]} 24. Qe6+ {[%clk 0:00:50]} 24... Rf7 {[%clk 0:00:48.8]} 25.
Qg4 {[%clk 0:00:39.1]} 25... Nf5 {[%clk 0:00:48.9]} 26. Re2 {[%clk 0:00:25.8]}
26... Bxf6 {[%clk 0:00:39.4]} 27. exf6 {[%clk 0:00:20.3]} 27... Rxf6 {[%clk
0:00:39.7]} 28. Rf1 {[%clk 0:00:18.5]} 28... Ba6 {[%clk 0:00:14.5]} 29. Nb5
{[%clk 0:00:18.1]} 29... Rbf8 {[%clk 0:00:12.3]} 30. Ref2 {[%clk 0:00:17.7]}
30... Kg7 {[%clk 0:00:09.5]} 31. Be4 {[%clk 0:00:17.1]} 31... Qxg4+ {[%clk
0:00:04.8]} 32. hxg4 {[%clk 0:00:17.5]} 32... Ne3 {[%clk 0:00:05.7]} 33. Rxf6
{[%clk 0:00:17.6]} 33... Rxf6 {[%clk 0:00:06.6]} 34. Rxf6 {[%clk 0:00:18.1]}
34... Kxf6 {[%clk 0:00:07.5]} 35. Bxh7 {[%clk 0:00:18.5]} 35... Bxb5 {[%clk
0:00:07.7]} 36. axb5 {[%clk 0:00:18.6]} 36... Nxg4 {[%clk 0:00:08.6]} 37. Bd3
{[%clk 0:00:18.8]} 37... Ke5 {[%clk 0:00:08.9]} 38. Kf1 {[%clk 0:00:16.6]} 38...
Kd4 {[%clk 0:00:09.1]} 39. Ke2 {[%clk 0:00:17.3]} 39... Ne5 {[%clk 0:00:06.4]}
40. c3+ {[%clk 0:00:17.5]} 40... Kc5 {[%clk 0:00:06.8]} 41. b4+ {[%clk
0:00:16.5]} 41... Kd5 {[%clk 0:00:07.4]} 42. Ke3 {[%clk 0:00:16.8]} 42... Nc4+
{[%clk 0:00:06.6]} 43. Ke2 {[%clk 0:00:15.8]} 43... Ne5 {[%clk 0:00:05.3]} 44.
Ke3 {[%clk 0:00:16.1]} 44... Nc4+ {[%clk 0:00:05.8]} 45. Ke2 {[%clk 0:00:16.6]}
45... Ne5 {[%clk 0:00:06.5]} 1/2-1/2

[Event "Early-Titled-Tuesday-Blitz-March-26-2024"]
[Site "Chess.com"]
[Date "2024.03.26"]
[Round "1"]
[White "KevinGeorgeMicheal"]
[Black "samolo"]
[Result "1-0"]
[WhiteElo "2396"]
[BlackElo "2673"]
[TimeControl "180+1"]
[EndTime "8:07:29 PDT"]
[Termination "KevinGeorgeMicheal won by checkmate"]

1. Nf3 {[%clk 0:03:00.9]} 1... Nf6 {[%clk 0:02:57]} 2. g3 {[%clk 0:03:00.8]}
2... g6 {[%clk 0:02:57.1]} 3. Bg2 {[%clk 0:03:01.1]} 3... Bg7 {[%clk 0:02:57.8]}
4. O-O {[%clk 0:03:01.7]} 4... O-O {[%clk 0:02:58.4]} 5. d3 {[%clk 0:03:01.6]}
5... d6 {[%clk 0:02:58.6]} 6. e4 {[%clk 0:03:01.6]} 6... c5 {[%clk 0:02:56]} 7.
Nc3 {[%clk 0:02:56.3]} 7... Nc6 {[%clk 0:02:56.4]} 8. h3 {[%clk 0:02:54.9]} 8...
Rb8 {[%clk 0:02:56.3]} 9. a4 {[%clk 0:02:54.2]} 9... a6 {[%clk 0:02:56.3]} 10.
Be3 {[%clk 0:02:53.9]} 10... b5 {[%clk 0:02:55.2]} 11. axb5 {[%clk 0:02:54.1]}
11... axb5 {[%clk 0:02:56.1]} 12. Qd2 {[%clk 0:02:54.8]} 12... b4 {[%clk
0:02:56.4]} 13. Ne2 {[%clk 0:02:54.8]} 13... e5 {[%clk 0:02:57]} 14. Bh6 {[%clk
0:02:54.5]} 14... Qb6 {[%clk 0:02:45.6]} 15. Kh2 {[%clk 0:02:39]} 15... Ba6
{[%clk 0:02:37.8]} 16. b3 {[%clk 0:02:32.3]} 16... Bb5 {[%clk 0:02:17.5]} 17.
Nh4 {[%clk 0:02:25.4]} 17... Nd7 {[%clk 0:01:12.1]} 18. Bxg7 {[%clk 0:02:16.5]}
18... Kxg7 {[%clk 0:01:12.1]} 19. f4 {[%clk 0:02:17.2]} 19... f6 {[%clk
0:01:09.9]} 20. Nf3 {[%clk 0:01:49.1]} 20... Ra8 {[%clk 0:01:08]} 21. f5 {[%clk
0:01:46]} 21... Nd4 {[%clk 0:00:58.2]} 22. g4 {[%clk 0:01:36.7]} 22... Nxe2
{[%clk 0:00:56.6]} 23. Qxe2 {[%clk 0:01:36.1]} 23... Rxa1 {[%clk 0:00:46.2]} 24.
Rxa1 {[%clk 0:01:35.2]} 24... Qb7 {[%clk 0:00:46.3]} 25. g5 {[%clk 0:01:10.6]}
25... Bc6 {[%clk 0:00:36.4]} 26. Rf1 {[%clk 0:00:53.9]} 26... gxf5 {[%clk
0:00:33.5]} 27. exf5 {[%clk 0:00:51.4]} 27... Kh8 {[%clk 0:00:28.6]} 28. g6
{[%clk 0:00:36.2]} 28... Rg8 {[%clk 0:00:24.9]} 29. gxh7 {[%clk 0:00:16.9]}
29... Rg7 {[%clk 0:00:23.4]} 30. Nh4 {[%clk 0:00:16]} 30... Bxg2 {[%clk
0:00:23.4]} 31. Nxg2 {[%clk 0:00:15.1]} 31... Rxh7 {[%clk 0:00:21.3]} 32. Ne3
{[%clk 0:00:15.3]} 32... d5 {[%clk 0:00:17.7]} 33. Rg1 {[%clk 0:00:15.2]} 33...
Qc7 {[%clk 0:00:17.8]} 34. Qg4 {[%clk 0:00:12.9]} 34... Qd8 {[%clk 0:00:16.9]}
35. Nxd5 {[%clk 0:00:12.4]} 35... e4 {[%clk 0:00:15.7]} 36. dxe4 {[%clk
0:00:10]} 36... Ne5 {[%clk 0:00:16.2]} 37. Qg3 {[%clk 0:00:10.4]} 37... Qf8
{[%clk 0:00:16.4]} 38. Nxf6 {[%clk 0:00:09]} 38... Rh6 {[%clk 0:00:14.6]} 39.
Qg8+ {[%clk 0:00:07.6]} 39... Qxg8 {[%clk 0:00:13.9]} 40. Rxg8# {[%clk
0:00:08.2]} 1-0

[Event "Early-Titled-Tuesday-Blitz-March-26-2024"]
[Site "Chess.com"]
[Date "2024.03.26"]
[Round "1"]
[White "Zurability"]
[Black "Josgar05"]
[Result "1-0"]
[WhiteElo "2710"]
[BlackElo "2382"]
[TimeControl "180+1"]
[EndTime "8:07:32 PDT"]
[Termination "Zurability won by resignation"]

1. e4 {[%clk 0:03:00.9]} 1... Nf6 {[%clk 0:02:58.5]} 2. e5 {[%clk 0:02:57.7]}
2... Nd5 {[%clk 0:02:59]} 3. d4 {[%clk 0:02:58.4]} 3... d6 {[%clk 0:02:58.3]} 4.
Nf3 {[%clk 0:02:58.6]} 4... g6 {[%clk 0:02:57.3]} 5. h3 {[%clk 0:02:54.7]} 5...
Bg7 {[%clk 0:02:57.1]} 6. exd6 {[%clk 0:02:49.6]} 6... exd6 {[%clk 0:02:37]} 7.
Be2 {[%clk 0:02:48.1]} 7... O-O {[%clk 0:02:36.7]} 8. O-O {[%clk 0:02:48.2]}
8... Nc6 {[%clk 0:02:36.2]} 9. c4 {[%clk 0:02:46.5]} 9... Nb6 {[%clk 0:02:35.7]}
10. d5 {[%clk 0:02:43.2]} 10... Ne5 {[%clk 0:02:34.7]} 11. Nxe5 {[%clk
0:02:43.4]} 11... Bxe5 {[%clk 0:02:35.1]} 12. Nd2 {[%clk 0:02:29.8]} 12... Bf5
{[%clk 0:02:33.1]} 13. Nf3 {[%clk 0:02:29.2]} 13... Bg7 {[%clk 0:02:32.9]} 14.
Nd4 {[%clk 0:02:26.7]} 14... Qd7 {[%clk 0:02:25.6]} 15. Be3 {[%clk 0:02:22.5]}
15... Rae8 {[%clk 0:02:22.4]} 16. Rc1 {[%clk 0:02:21.1]} 16... Be4 {[%clk
0:02:15.1]} 17. b3 {[%clk 0:02:08.7]} 17... Qd8 {[%clk 0:01:52.9]} 18. Qd2
{[%clk 0:01:48.6]} 18... Nd7 {[%clk 0:01:50.1]} 19. Rfe1 {[%clk 0:01:43.5]}
19... Qf6 {[%clk 0:01:33.1]} 20. Nb5 {[%clk 0:01:40.1]} 20... Qd8 {[%clk
0:01:16.8]} 21. Bxa7 {[%clk 0:01:34.4]} 21... b6 {[%clk 0:01:08.5]} 22. a4
{[%clk 0:01:29.8]} 22... Nc5 {[%clk 0:01:08]} 23. Rc3 {[%clk 0:00:38.2]} 23...
Bxc3 {[%clk 0:00:56.6]} 24. Qxc3 {[%clk 0:00:39.1]} 24... Qg5 {[%clk 0:00:54.9]}
25. Bf1 {[%clk 0:00:39.2]} 25... Re7 {[%clk 0:00:46.4]} 26. a5 {[%clk
0:00:37.2]} 26... bxa5 {[%clk 0:00:35.7]} 27. Bxc5 {[%clk 0:00:24.4]} 27... dxc5
{[%clk 0:00:36.6]} 28. Qxa5 {[%clk 0:00:24]} 28... Bxg2 {[%clk 0:00:35.1]} 29.
Bxg2 {[%clk 0:00:20.7]} 29... Rfe8 {[%clk 0:00:33.7]} 30. Rxe7 {[%clk
0:00:20.4]} 30... Rxe7 {[%clk 0:00:34.6]} 31. Qc3 {[%clk 0:00:15.1]} 31... Re2
{[%clk 0:00:32.4]} 32. Qf3 {[%clk 0:00:08.2]} 32... Qc1+ {[%clk 0:00:30.6]} 33.
Kh2 {[%clk 0:00:08.7]} 33... Qd2 {[%clk 0:00:27.3]} 34. Kg3 {[%clk 0:00:09]}
34... Qg5+ {[%clk 0:00:21.2]} 35. Kh2 {[%clk 0:00:07.5]} 35... Qe5+ {[%clk
0:00:21.5]} 36. Qg3 {[%clk 0:00:07.6]} 36... Qb2 {[%clk 0:00:18.8]} 37. Nxc7
{[%clk 0:00:06.3]} 37... Rxf2 {[%clk 0:00:19]} 38. d6 {[%clk 0:00:07]} 38... Rd2
{[%clk 0:00:18.4]} 39. Nd5 {[%clk 0:00:07.3]} 39... Qa3 {[%clk 0:00:09.8]} 40.
d7 {[%clk 0:00:06.4]} 40... Qa5 {[%clk 0:00:10.5]} 41. Qg5 {[%clk 0:00:06.1]}
41... Rxd5 {[%clk 0:00:08.9]} 42. Bxd5 {[%clk 0:00:05.2]} 42... Qc7+ {[%clk
0:00:08.4]} 43. Kg2 {[%clk 0:00:04.2]} 1-0

[Event "Early-Titled-Tuesday-Blitz-March-26-2024"]
[Site "Chess.com"]
[Date "2024.03.26"]
[Round "1"]
[White "Zapateado"]
[Black "Sammed_Shete"]
[Result "0-1"]
[WhiteElo "2401"]
[BlackElo "2734"]
[TimeControl "180+1"]
[EndTime "8:07:34 PDT"]
[Termination "Sammed_Shete won on time"]

1. c4 {[%clk 0:02:39.7]} 1... Nf6 {[%clk 0:02:58.3]} 2. Nc3 {[%clk 0:02:40.2]}
2... g6 {[%clk 0:02:58.1]} 3. g3 {[%clk 0:02:39.9]} 3... Bg7 {[%clk 0:02:57.7]}
4. Bg2 {[%clk 0:02:40.6]} 4... O-O {[%clk 0:02:57.7]} 5. e4 {[%clk 0:02:41.3]}
5... c5 {[%clk 0:02:56.4]} 6. Nge2 {[%clk 0:02:41.5]} 6... d6 {[%clk 0:02:56]}
7. O-O {[%clk 0:02:41.7]} 7... Nc6 {[%clk 0:02:48.4]} 8. d3 {[%clk 0:02:42]}
8... Bd7 {[%clk 0:02:46.1]} 9. h3 {[%clk 0:02:39.8]} 9... a6 {[%clk 0:02:43.4]}
10. Kh2 {[%clk 0:02:39.7]} 10... Rb8 {[%clk 0:02:42.9]} 11. a4 {[%clk
0:02:39.9]} 11... b6 {[%clk 0:02:39.7]} 12. Be3 {[%clk 0:02:39.8]} 12... Ne8
{[%clk 0:02:35.1]} 13. d4 {[%clk 0:02:38.5]} 13... cxd4 {[%clk 0:02:29]} 14.
Nxd4 {[%clk 0:02:39.4]} 14... Ne5 {[%clk 0:02:17.2]} 15. b3 {[%clk 0:02:30.9]}
15... Nc7 {[%clk 0:02:16.9]} 16. f4 {[%clk 0:02:24.9]} 16... Nc6 {[%clk
0:02:16.6]} 17. Qd2 {[%clk 0:02:03.5]} 17... Nxd4 {[%clk 0:01:50.1]} 18. Bxd4
{[%clk 0:02:02.3]} 18... Bxd4 {[%clk 0:01:51]} 19. Qxd4 {[%clk 0:02:02]} 19...
Ne6 {[%clk 0:01:51.9]} 20. Qe3 {[%clk 0:02:00.7]} 20... Nc5 {[%clk 0:01:50.9]}
21. b4 {[%clk 0:01:39.5]} 21... Ne6 {[%clk 0:01:39.7]} 22. f5 {[%clk 0:01:38]}
22... Ng7 {[%clk 0:01:34.6]} 23. g4 {[%clk 0:01:25.8]} 23... Ne8 {[%clk
0:01:16.9]} 24. Qh6 {[%clk 0:01:12.8]} 24... e6 {[%clk 0:01:06.7]} 25. g5 {[%clk
0:00:52.7]} 25... exf5 {[%clk 0:00:44.7]} 26. exf5 {[%clk 0:00:53.6]} 26... Bxf5
{[%clk 0:00:44.9]} 27. Rxf5 {[%clk 0:00:53.8]} 27... gxf5 {[%clk 0:00:45.8]} 28.
Nd5 {[%clk 0:00:53.5]} 28... f6 {[%clk 0:00:46.2]} 29. Re1 {[%clk 0:00:21.3]}
29... Rf7 {[%clk 0:00:13.7]} 30. Rxe8+ {[%clk 0:00:13.3]} 30... Qxe8 {[%clk
0:00:13.5]} 31. Nxf6+ {[%clk 0:00:13.7]} 31... Rxf6 {[%clk 0:00:13.7]} 32. gxf6
{[%clk 0:00:13.9]} 32... Qg6 {[%clk 0:00:14.2]} 33. Bd5+ {[%clk 0:00:13.1]}
33... Kh8 {[%clk 0:00:14.7]} 34. Qf4 {[%clk 0:00:10.9]} 34... Qxf6 {[%clk
0:00:14.7]} 35. Qe3 {[%clk 0:00:04.9]} 35... Qe5+ {[%clk 0:00:14.5]} 36. Qxe5+
{[%clk 0:00:05.1]} 36... dxe5 {[%clk 0:00:15.4]} 37. Kg3 {[%clk 0:00:05]} 37...
Kg7 {[%clk 0:00:15.7]} 38. Kf3 {[%clk 0:00:05.3]} 38... Kf6 {[%clk 0:00:15.6]}
39. Ke3 {[%clk 0:00:05.6]} 39... Rd8 {[%clk 0:00:15.8]} 40. Bb7 {[%clk
0:00:04.8]} 40... a5 {[%clk 0:00:15.6]} 41. c5 {[%clk 0:00:04.2]} 41... axb4
{[%clk 0:00:13.2]} 42. cxb6 {[%clk 0:00:04.4]} 42... b3 {[%clk 0:00:13.7]} 0-1

[Event "Early-Titled-Tuesday-Blitz-March-26-2024"]
[Site "Chess.com"]
[Date "2024.03.26"]
[Round "1"]
[White "Mikhail_Golubev"]
[Black "JJDAREK"]
[Result "1-0"]
[WhiteElo "2728"]
[BlackElo "2392"]
[TimeControl "180+1"]
[EndTime "8:07:35 PDT"]
[Termination "Mikhail_Golubev won on time"]

1. e4 {[%clk 0:03:00.9]} 1... d6 {[%clk 0:02:58.8]} 2. d4 {[%clk 0:02:58.5]}
2... g6 {[%clk 0:02:56.6]} 3. Bg5 {[%clk 0:02:53.6]} 3... Bg7 {[%clk 0:02:55.3]}
4. c3 {[%clk 0:02:53.4]} 4... Nf6 {[%clk 0:02:52.2]} 5. Nd2 {[%clk 0:02:53.3]}
5... O-O {[%clk 0:02:51.5]} 6. Ngf3 {[%clk 0:02:52.8]} 6... Nbd7 {[%clk
0:02:49.1]} 7. Be2 {[%clk 0:02:51.6]} 7... h6 {[%clk 0:02:47.8]} 8. Bh4 {[%clk
0:02:49.3]} 8... e5 {[%clk 0:02:43.9]} 9. dxe5 {[%clk 0:02:47]} 9... Nxe5 {[%clk
0:02:43.6]} 10. Nxe5 {[%clk 0:02:45.7]} 10... dxe5 {[%clk 0:02:44.5]} 11. O-O
{[%clk 0:02:43.9]} 11... Qe7 {[%clk 0:02:41.1]} 12. Qc2 {[%clk 0:02:35.4]} 12...
b6 {[%clk 0:02:38.3]} 13. b4 {[%clk 0:02:16.1]} 13... Bb7 {[%clk 0:02:35.1]} 14.
Rfd1 {[%clk 0:02:10.3]} 14... Kh7 {[%clk 0:02:14.6]} 15. f3 {[%clk 0:01:50.9]}
15... Rfd8 {[%clk 0:02:11.4]} 16. Nc4 {[%clk 0:01:44.3]} 16... g5 {[%clk
0:01:53.6]} 17. Bf2 {[%clk 0:01:43.4]} 17... Nh5 {[%clk 0:01:45]} 18. Ne3 {[%clk
0:01:34.4]} 18... Nf4 {[%clk 0:01:38]} 19. Bc4 {[%clk 0:01:26.9]} 19... Bf8
{[%clk 0:01:01.8]} 20. Nf5 {[%clk 0:01:21.7]} 20... Qf6 {[%clk 0:01:01.8]} 21.
Be3 {[%clk 0:01:11.9]} 21... Qg6 {[%clk 0:00:51.7]} 22. Rxd8 {[%clk 0:00:41.5]}
22... Rxd8 {[%clk 0:00:52.6]} 23. Rd1 {[%clk 0:00:40.8]} 23... Rxd1+ {[%clk
0:00:47.5]} 24. Qxd1 {[%clk 0:00:41.7]} 24... g4 {[%clk 0:00:29.8]} 25. fxg4
{[%clk 0:00:17.6]} 25... Bxe4 {[%clk 0:00:27.8]} 26. Bxf4 {[%clk 0:00:16]} 26...
exf4 {[%clk 0:00:27.1]} 27. Qd7 {[%clk 0:00:14.7]} 27... Bxf5 {[%clk 0:00:15.1]}
28. gxf5 {[%clk 0:00:14.1]} 28... Qf6 {[%clk 0:00:12.7]} 29. Bxf7 {[%clk
0:00:13.1]} 29... Bg7 {[%clk 0:00:09.4]} 30. Bg6+ {[%clk 0:00:11.1]} 30... Kh8
{[%clk 0:00:09]} 31. Qe8+ {[%clk 0:00:10.6]} 31... Bf8 {[%clk 0:00:08.8]} 32. h3
{[%clk 0:00:08.5]} 32... f3 {[%clk 0:00:07.9]} 33. g3 {[%clk 0:00:05.6]} 33...
c5 {[%clk 0:00:06.4]} 34. Qd7 {[%clk 0:00:05.4]} 34... Bg7 {[%clk 0:00:05.5]}
35. Kf2 {[%clk 0:00:03.9]} 35... cxb4 {[%clk 0:00:04.9]} 36. Qe8+ {[%clk
0:00:03.3]} 36... Bf8 {[%clk 0:00:04.9]} 37. cxb4 {[%clk 0:00:03.3]} 37... h5
{[%clk 0:00:01.7]} 38. Kxf3 {[%clk 0:00:02.8]} 1-0

[Event "Early-Titled-Tuesday-Blitz-March-26-2024"]
[Site "Chess.com"]
[Date "2024.03.26"]
[Round "1"]
[White "Defend1r"]
[Black "KorolDimitriy75"]
[Result "0-1"]
[WhiteElo "2670"]
[BlackElo "2374"]
[TimeControl "180+1"]
[EndTime "8:07:36 PDT"]
[Termination "KorolDimitriy75 won by checkmate"]

1. e4 {[%clk 0:02:58.9]} 1... c5 {[%clk 0:02:59.8]} 2. Nf3 {[%clk 0:02:59.1]}
2... d6 {[%clk 0:03:00.2]} 3. c3 {[%clk 0:02:58.9]} 3... Nf6 {[%clk 0:03:00.4]}
4. h3 {[%clk 0:02:59.3]} 4... g6 {[%clk 0:03:00.3]} 5. Bd3 {[%clk 0:02:59]} 5...
Bg7 {[%clk 0:02:59.9]} 6. Bc2 {[%clk 0:02:59.7]} 6... e5 {[%clk 0:03:00.3]} 7.
d4 {[%clk 0:03:00.4]} 7... exd4 {[%clk 0:03:00.3]} 8. cxd4 {[%clk 0:03:01.3]}
8... cxd4 {[%clk 0:03:01.1]} 9. Nxd4 {[%clk 0:03:02.1]} 9... O-O {[%clk
0:03:01.5]} 10. O-O {[%clk 0:02:59.2]} 10... Nc6 {[%clk 0:03:01.7]} 11. Nxc6
{[%clk 0:02:59.1]} 11... bxc6 {[%clk 0:03:02.6]} 12. Nc3 {[%clk 0:02:52.4]}
12... Be6 {[%clk 0:02:48]} 13. Bg5 {[%clk 0:02:47.6]} 13... Rb8 {[%clk
0:02:37.6]} 14. Rb1 {[%clk 0:02:34.9]} 14... Qa5 {[%clk 0:02:24.9]} 15. Bf4
{[%clk 0:02:15.8]} 15... Rfd8 {[%clk 0:01:24.2]} 16. Ba4 {[%clk 0:02:14.7]}
16... Rbc8 {[%clk 0:00:54.9]} 17. b4 {[%clk 0:02:01.6]} 17... Qa6 {[%clk
0:00:44.5]} 18. Re1 {[%clk 0:01:12]} 18... d5 {[%clk 0:00:38.1]} 19. e5 {[%clk
0:01:08.2]} 19... Ne4 {[%clk 0:00:38.3]} 20. Ne2 {[%clk 0:00:57.1]} 20... d4
{[%clk 0:00:19.4]} 21. Bb3 {[%clk 0:00:25.5]} 21... d3 {[%clk 0:00:18]} 22. Bxe6
{[%clk 0:00:19.3]} 22... fxe6 {[%clk 0:00:18.2]} 23. Qb3 {[%clk 0:00:13.2]}
23... dxe2 {[%clk 0:00:18]} 24. Qxe6+ {[%clk 0:00:13.4]} 24... Kh8 {[%clk
0:00:18.1]} 25. Rbc1 {[%clk 0:00:08.4]} 25... Re8 {[%clk 0:00:15.4]} 26. Qd7
{[%clk 0:00:08.1]} 26... Rcd8 {[%clk 0:00:14.7]} 27. Qc7 {[%clk 0:00:08.1]}
27... Qxa2 {[%clk 0:00:14.2]} 28. e6 {[%clk 0:00:06.5]} 28... Qxe6 {[%clk
0:00:13.4]} 29. Rxc6 {[%clk 0:00:05.7]} 29... Qf5 {[%clk 0:00:11.1]} 30. Rxe2
{[%clk 0:00:05.6]} 30... Nc3 {[%clk 0:00:09.7]} 31. Rxe8+ {[%clk 0:00:05.3]}
31... Rxe8 {[%clk 0:00:09.7]} 32. Rxc3 {[%clk 0:00:05.8]} 32... Bxc3 {[%clk
0:00:05.8]} 33. Qxc3+ {[%clk 0:00:06.7]} 33... Kg8 {[%clk 0:00:06.2]} 34. Bg3
{[%clk 0:00:06.2]} 34... Qd5 {[%clk 0:00:05.8]} 35. Kh2 {[%clk 0:00:05.8]} 35...
a6 {[%clk 0:00:05.7]} 36. h4 {[%clk 0:00:06.2]} 36... Qb5 {[%clk 0:00:05.1]} 37.
Qb3+ {[%clk 0:00:05.5]} 37... Kg7 {[%clk 0:00:03.7]} 38. Qb2+ {[%clk 0:00:05.4]}
38... Kg8 {[%clk 0:00:03.9]} 39. Bd6 {[%clk 0:00:05.3]} 39... Qd5 {[%clk
0:00:03.3]} 40. Qf6 {[%clk 0:00:05.2]} 40... Qe6 {[%clk 0:00:03.5]} 41. Qd4
{[%clk 0:00:05]} 41... Qe4 {[%clk 0:00:03.3]} 42. Qc5 {[%clk 0:00:04.4]} 42...
Qxh4+ {[%clk 0:00:03.4]} 43. Kg1 {[%clk 0:00:03.8]} 43... Re1# {[%clk
0:00:04.3]} 0-1

[Event "Early-Titled-Tuesday-Blitz-March-26-2024"]
[Site "Chess.com"]
[Date "2024.03.26"]
[Round "1"]
[White "Brahianzevich"]
[Black "sokidze"]
[Result "1-0"]
[WhiteElo "2455"]
[BlackElo "2780"]
[TimeControl "180+1"]
[EndTime "8:07:37 PDT"]
[Termination "Brahianzevich won by resignation"]

1. e4 {[%clk 0:02:57]} 1... c6 {[%clk 0:02:58.9]} 2. d4 {[%clk 0:02:56.6]} 2...
d5 {[%clk 0:02:58.7]} 3. Nc3 {[%clk 0:02:57.4]} 3... dxe4 {[%clk 0:02:59]} 4.
Nxe4 {[%clk 0:02:58.3]} 4... Bf5 {[%clk 0:02:59.6]} 5. Ng3 {[%clk 0:02:58.3]}
5... Bg6 {[%clk 0:03:00]} 6. Nf3 {[%clk 0:02:59.2]} 6... e6 {[%clk 0:03:00.3]}
7. h4 {[%clk 0:03:00.1]} 7... h6 {[%clk 0:03:00.8]} 8. h5 {[%clk 0:03:00.3]}
8... Bh7 {[%clk 0:03:01.3]} 9. Bd3 {[%clk 0:03:01.2]} 9... Bxd3 {[%clk
0:03:01.6]} 10. Qxd3 {[%clk 0:03:02.1]} 10... Nf6 {[%clk 0:03:02.3]} 11. Bd2
{[%clk 0:03:01.1]} 11... Be7 {[%clk 0:02:59.3]} 12. O-O-O {[%clk 0:02:59.6]}
12... c5 {[%clk 0:02:59.1]} 13. Kb1 {[%clk 0:02:54.1]} 13... Nc6 {[%clk
0:02:57.6]} 14. Bc1 {[%clk 0:02:16.8]} 14... O-O {[%clk 0:02:20.6]} 15. Ne4
{[%clk 0:02:13]} 15... cxd4 {[%clk 0:02:10.6]} 16. Nxf6+ {[%clk 0:02:09.3]}
16... Bxf6 {[%clk 0:02:10.2]} 17. g4 {[%clk 0:02:09.6]} 17... Qd5 {[%clk
0:02:07.3]} 18. Rhg1 {[%clk 0:02:01.6]} 18... Rac8 {[%clk 0:01:28.1]} 19. a3
{[%clk 0:01:54.3]} 19... Bg5 {[%clk 0:01:08.9]} 20. Nxg5 {[%clk 0:01:51.9]}
20... hxg5 {[%clk 0:01:08.9]} 21. f4 {[%clk 0:01:33.5]} 21... gxf4 {[%clk
0:01:05.5]} 22. g5 {[%clk 0:01:20.2]} 22... Ne5 {[%clk 0:01:01.2]} 23. Qh3
{[%clk 0:01:17.6]} 23... Nf3 {[%clk 0:00:23.6]} 24. g6 {[%clk 0:01:06.6]} 24...
Nxg1 {[%clk 0:00:22.2]} 25. Rxg1 {[%clk 0:01:07.5]} 25... Qf5 {[%clk 0:00:21.6]}
26. Qh2 {[%clk 0:01:05.6]} 26... f3 {[%clk 0:00:18.2]} 27. h6 {[%clk 0:00:58]}
27... fxg6 {[%clk 0:00:09.7]} 28. hxg7 {[%clk 0:00:58]} 28... Kxg7 {[%clk
0:00:09.2]} 29. Qh6+ {[%clk 0:00:55.8]} 29... Kf6 {[%clk 0:00:09.7]} 30. Bg5+
{[%clk 0:00:54]} 30... Ke5 {[%clk 0:00:09.5]} 31. Qg7+ {[%clk 0:00:50]} 31...
Kd6 {[%clk 0:00:05.9]} 32. Be7+ {[%clk 0:00:40.9]} 32... Kc6 {[%clk 0:00:04.1]}
33. Qxd4 {[%clk 0:00:32.2]} 33... Qd5 {[%clk 0:00:02]} 34. Qa4+ {[%clk
0:00:26.6]} 34... b5 {[%clk 0:00:01.9]} 35. Qa6+ {[%clk 0:00:24]} 35... Kd7
{[%clk 0:00:02.5]} 36. Bxf8 {[%clk 0:00:21]} 36... Rxf8 {[%clk 0:00:02.4]} 37.
Rxg6 {[%clk 0:00:19.3]} 37... f2 {[%clk 0:00:02.5]} 38. Rg7+ {[%clk 0:00:18.9]}
38... Rf7 {[%clk 0:00:02.2]} 39. Rxf7+ {[%clk 0:00:18.6]} 39... Ke8 {[%clk
0:00:02.7]} 40. Rxf2 {[%clk 0:00:17.8]} 40... Qd1+ {[%clk 0:00:03.3]} 41. Ka2
{[%clk 0:00:17.7]} 41... Qd5+ {[%clk 0:00:04.2]} 42. b3 {[%clk 0:00:18.2]} 42...
Ke7 {[%clk 0:00:04]} 43. Qxa7+ {[%clk 0:00:18.3]} 43... Kd6 {[%clk 0:00:04.6]}
44. Qb8+ {[%clk 0:00:17.6]} 44... Kc5 {[%clk 0:00:04.7]} 45. Qc7+ {[%clk
0:00:17.5]} 45... Qc6 {[%clk 0:00:04.9]} 46. Qxc6+ {[%clk 0:00:17.7]} 1-0